bitfinex-derivatives/quotes_SOLF0:USTF0_20250929
["timestamp","ask_amount","ask_price","bid_price","bid_amount"]
[1759184501316,7.41,213.38,213.25,114.87]
[1759184501513,7.41,213.38,213.25,129.19100763]
[1759184501920,2.65559525,213.39,213.25,129.19100763]
[1759184502217,7.41,213.38,213.25,129.19100763]
[1759184503414,7.41,213.38,213.26,0.57]
[1759184511017,7.41,213.38,213.27,0.57]
[1759184526833,7.76,213.41,213.25,14.32100763]
[1759184527038,2.65559525,213.39,213.25,2.65559525]
[1759184527338,7.76,213.37,213.25,2.65559525]
[1759184529237,7.76,213.38,213.25,13.96958137]
[1759184529443,7.76,213.36,213.24,0.6]
[1759184529635,3.35196489,213.35,213.24,0.6]
[1759184529835,7.76,213.34,213.24,0.6]
[1759184530643,7.76,213.34,213.21,2.65559525]
[1759184532344,7.76,213.34,213.22,0.6]
[1759184532540,7.76,213.34,213.22,14.40001336]
[1759184532843,7.76,213.35,213.22,14.40001336]
[1759184533044,7.76,213.33,213.22,14.40001336]
[1759184533344,12.95559525,213.36,213.22,14.40001336]
[1759184533537,7.76,213.34,213.22,14.40001336]
[1759184533738,7.76,213.35,213.22,14.40001336]
[1759184533938,7.76,213.33,213.22,14.40001336]
[1759184534140,7.76,213.34,213.22,14.40001336]
[1759184534337,12.95559525,213.36,213.22,14.40001336]
[1759184534543,3.35421949,213.35,213.22,14.40001336]
[1759184534743,3.35421949,213.34,213.22,14.40001336]
[1759184534937,12.95559525,213.36,213.22,14.40001336]
[1759184534938,7.76,213.35,213.22,14.40001336]
[1759184535133,3.35408703,213.34,213.22,14.40001336]
[1759184535339,3.35408703,213.33,213.22,14.40001336]
[1759184535544,7.33,213.35,213.22,14.40001336]
[1759184535746,3.3545975,213.34,213.22,14.40001336]
[1759184536038,7.33,213.32,213.22,14.40001336]
[1759184536242,12.95559525,213.36,213.22,14.40001336]
[1759184536438,7.33,213.34,213.22,14.40001336]
[1759184536644,12.95559525,213.36,213.22,14.40001336]
[1759184536645,7.33,213.32,213.22,14.40001336]
[1759184536948,12.95559525,213.36,213.22,14.40001336]
[1759184537243,7.33,213.34,213.22,14.40001336]
[1759184537444,3.35521642,213.33,213.22,14.40001336]
[1759184537642,7.33,213.35,213.22,14.40001336]
[1759184537844,3.3559784,213.34,213.22,14.40001336]
[1759184538036,7.33,213.32,213.22,14.40001336]
[1759184538241,7.33,213.35,213.22,14.40001336]
[1759184538440,3.35691606,213.34,213.22,14.40001336]
[1759184538645,3.35691606,213.33,213.22,14.40001336]
[1759184538846,7.33,213.31,213.23,0.61]
[1759184544354,7.33,213.31,213.25,2.30137967]
[1759184549549,1.70137967,213.33,213.23,1.70137967]
[1759184549851,11.00951799,213.32,213.23,1.70137967]
[1759184550050,7.65,213.32,213.23,1.70137967]
[1759184550856,7.65,213.32,213.23,2.30137967]
[1759184551157,7.65,213.32,213.25,1.70137967]
[1759184551357,7.65,213.32,213.25,2.30137967]
[1759184551854,7.65,213.32,213.26,0.6]
[1759184552654,7.65,213.32,213.26,2.30137967]
[1759184553457,7.65,213.32,213.22,13.77279474]
[1759184553458,7.65,213.36,213.22,14.37279474]
[1759184553755,7.65,213.34,213.25,1.70137967]
[1759184554055,7.65,213.32,213.25,1.70137967]
[1759184556957,7.65,213.32,213.26,0.6]
[1759184558751,7.65,213.38,213.29,0.6]
[1759184558951,3.35990867,213.37,213.29,0.6]
[1759184559155,11.00990867,213.36,213.29,0.6]
[1759184559355,3.35990867,213.35,213.29,0.6]
[1759184559558,7.65,213.38,213.29,0.6]
[1759184559752,7.65,213.36,213.29,0.6]
[1759184559954,3.36007805,213.35,213.29,0.6]
[1759184560153,7.65,213.36,213.29,0.6]
[1759184560457,3.36018629,213.35,213.29,0.6]
[1759184560652,7.65,213.38,213.29,0.6]
[1759184560852,7.65,213.36,213.29,0.6]
[1759184562550,7.65,213.36,213.22,13.78567133]
[1759184562551,7.65,213.38,213.31,1.70137967]
[1759184562751,3.3601674,213.37,213.31,1.70137967]
[1759184562947,7.65,213.35,213.31,2.30137967]
[1759184563151,7.65,213.38,213.31,2.30137967]
[1759184563458,3.36024393,213.37,213.31,2.30137967]
[1759184563658,3.36024393,213.36,213.31,2.30137967]
[1759184563847,7.65,213.38,213.31,2.30137967]
[1759184564050,7.65,213.36,213.31,2.30137967]
[1759184564257,3.36024393,213.37,213.31,2.30137967]
[1759184564258,7.65,213.38,213.31,2.30137967]
[1759184564445,3.36032137,213.37,213.31,2.30137967]
[1759184564651,7.65,213.35,213.31,2.30137967]
[1759184564852,7.65,213.4,213.31,2.30137967]
[1759184565146,7.65,213.38,213.31,2.30137967]
[1759184565352,7.65,213.36,213.31,2.30137967]
[1759184565555,7.65,213.4,213.31,2.30137967]
[1759184565758,7.65,213.38,213.26,0.6]
[1759184565954,7.65,213.36,213.29,1.70137967]
[1759184566151,7.65,213.34,213.29,1.70137967]
[1759184566552,1.70137967,213.39,213.29,1.70137967]
[1759184566850,11.01027937,213.38,213.29,1.70137967]
[1759184567048,7.65,213.36,213.29,1.70137967]
[1759184567247,3.36027937,213.35,213.29,1.70137967]
[1759184567448,7.65,213.38,213.29,1.70137967]
[1759184567661,7.65,213.36,213.29,1.70137967]
[1759184567848,7.65,213.34,213.29,1.70137967]
[1759184568352,7.65,213.38,213.29,1.70137967]
[1759184568553,7.65,213.36,213.29,1.70137967]
[1759184568752,7.65,213.34,213.29,1.70137967]
[1759184569053,7.65,213.38,213.29,1.70137967]
[1759184569252,7.65,213.36,213.29,1.70137967]
[1759184569452,3.36035743,213.35,213.29,1.70137967]
[1759184569653,7.65,213.38,213.29,1.70137967]
[1759184569855,7.65,213.36,213.29,1.70137967]
[1759184570053,7.65,213.34,213.29,1.70137967]
[1759184570256,7.65,213.38,213.29,1.70137967]
[1759184570461,7.65,213.36,213.29,1.70137967]
[1759184570754,7.65,213.34,213.29,1.70137967]
[1759184571561,1.70137967,213.39,213.29,1.70137967]
[1759184571859,11.01064159,213.38,213.29,1.70137967]
[1759184572062,7.65,213.36,213.29,1.70137967]
[1759184572262,7.65,213.34,213.29,1.70137967]
[1759184572459,7.65,213.38,213.29,1.70137967]
[1759184572660,7.65,213.36,213.29,1.70137967]
[1759184572859,3.36051754,213.35,213.29,1.70137967]
[1759184573051,7.65,213.34,213.29,1.70137967]
[1759184573255,7.65,213.38,213.29,1.70137967]
[1759184573452,7.65,213.36,213.29,1.70137967]
[1759184573656,7.65,213.34,213.3,0.6]
[1759184573860,7.65,213.34,213.31,0.6]
[1759184574062,7.65,213.38,213.31,0.6]
[1759184574363,7.68,213.36,213.29,1.70137967]
[1759184574551,3.36045423,213.35,213.29,1.70137967]
[1759184574755,7.68,213.38,213.29,1.70137967]
[1759184574960,7.68,213.36,213.29,1.70137967]
[1759184575161,7.68,213.34,213.29,1.70137967]
[1759184575362,7.68,213.38,213.29,1.70137967]
[1759184575559,7.68,213.36,213.29,1.70137967]
[1759184575760,3.36037702,213.35,213.29,2.29137967]
[1759184575961,7.68,213.38,213.29,2.29137967]
[1759184576163,7.68,213.36,213.29,2.29137967]
[1759184576463,3.36037702,213.35,213.29,2.29137967]
[1759184576665,7.68,213.38,213.29,2.29137967]
[1759184576864,7.68,213.36,213.29,2.29137967]
[1759184577065,3.36031376,213.35,213.29,2.29137967]
[1759184577265,7.68,213.38,213.29,2.29137967]
[1759184577565,7.68,213.36,213.29,2.29137967]
[1759184577760,3.36184488,213.35,213.29,2.29137967]
[1759184577961,7.68,213.38,213.29,2.29137967]
[1759184578161,7.68,213.36,213.29,2.29137967]
[1759184578362,7.68,213.34,213.29,2.29137967]
[1759184578556,7.68,213.38,213.29,0.59]
[1759184578764,7.68,213.36,213.29,2.29137967]
[1759184578969,3.36181643,213.35,213.29,1.70137967]
[1759184579165,7.68,213.38,213.3,0.59]
[1759184579371,3.3618504,213.37,213.3,0.59]
[1759184579671,11.0418504,213.36,213.3,0.59]
[1759184579870,3.3618504,213.35,213.3,0.59]
[1759184580072,7.68,213.38,213.3,0.59]
[1759184580374,7.68,213.36,213.3,0.59]
[1759184580574,3.36183165,213.35,213.3,0.59]
[1759184580767,7.68,213.38,213.3,0.59]
[1759184580973,3.36082259,213.37,213.3,0.59]
[1759184581174,7.68,213.35,213.3,0.59]
[1759184581375,7.68,213.38,213.3,0.59]
[1759184581575,7.68,213.36,213.3,0.59]
[1759184581877,7.68,213.34,213.3,0.59]
[1759184582074,7.68,213.38,213.3,0.59]
[1759184582274,7.68,213.36,213.3,0.59]
[1759184582474,7.68,213.34,213.3,0.59]
[1759184582675,7.68,213.38,213.3,0.59]
[1759184582879,7.68,213.36,213.3,0.59]
[1759184583176,3.35996314,213.35,213.29,2.29137967]
[1759184583374,7.68,213.38,213.3,0.59]
[1759184583576,3.36004033,213.37,213.3,0.59]
[1759184583876,7.68,213.35,213.3,0.59]
[1759184584080,3.36004033,213.36,213.3,0.59]
[1759184584081,7.68,213.38,213.3,0.59]
[1759184584281,3.36010986,213.37,213.3,0.59]
[1759184584479,3.36010986,213.36,213.3,0.59]
[1759184584780,7.68,213.34,213.3,0.59]
[1759184585080,7.68,213.38,213.3,0.59]
[1759184585272,7.68,213.36,213.3,0.59]
[1759184585482,3.36014269,213.35,213.3,0.59]
[1759184585674,7.68,213.38,213.3,0.59]
[1759184585871,1.70137967,213.39,213.3,0.59]
[1759184585872,3.36029577,213.37,213.3,0.59]
[1759184586179,11.04029577,213.36,213.3,0.59]
[1759184586376,7.68,213.34,213.3,0.59]
[1759184586579,7.68,213.38,213.3,0.59]
[1759184586778,7.68,213.36,213.3,0.59]
[1759184586978,7.68,213.34,213.3,0.59]
[1759184587281,7.68,213.33,213.26,1.70137967]
[1759184587482,3.36026085,213.32,213.23,19.29137967]
[1759184587682,1.70137967,213.34,213.23,19.29137967]
[1759184587979,3.36025203,213.33,213.23,19.29137967]
[1759184588181,3.36025203,213.32,213.23,19.29137967]
[1759184588479,7.68,213.33,213.23,19.29137967]
[1759184588679,3.36024528,213.32,213.23,19.29137967]
[1759184588881,7.68,213.33,213.23,19.29137967]
[1759184589182,5.06162495,213.32,213.23,19.29137967]
[1759184589378,1.70137967,213.32,213.23,18.70137967]
[1759184589777,7.68,213.3,213.23,18.70137967]
[1759184589985,7.68,213.31,213.23,18.70137967]
[1759184590282,1.70137967,213.32,213.23,18.70137967]
[1759184590478,7.68,213.3,213.23,18.70137967]
[1759184590779,7.68,213.31,213.23,18.70137967]
[1759184590974,1.70137967,213.32,213.23,18.70137967]
[1759184591178,7.68,213.3,213.23,18.70137967]
[1759184591381,7.68,213.31,213.23,18.70137967]
[1759184591881,1.70137967,213.32,213.23,18.70137967]
[1759184592073,7.68,213.3,213.23,18.70137967]
[1759184592277,7.68,213.31,213.23,18.70137967]
[1759184592483,1.70137967,213.32,213.23,18.70137967]
[1759184592684,7.68,213.3,213.23,18.70137967]
[1759184592887,7.68,213.31,213.23,18.70137967]
[1759184593283,1.70137967,213.32,213.23,18.70137967]
[1759184593482,7.68,213.3,213.23,18.70137967]
[1759184594481,7.68,213.31,213.23,18.70137967]
[1759184595587,1.70137967,213.32,213.23,18.70137967]
[1759184595882,3.35735077,213.31,213.23,18.70137967]
[1759184596086,7.68,213.3,213.23,18.70137967]
[1759184596586,1.70137967,213.32,213.23,18.70137967]
[1759184596787,7.68,213.3,213.23,18.70137967]
[1759184597084,1.70137967,213.32,213.23,18.70137967]
[1759184597284,7.68,213.3,213.23,18.70137967]
[1759184600288,1.70137967,213.32,213.23,18.70137967]
[1759184600490,3.35563137,213.31,213.23,18.70137967]
[1759184600682,1.70137967,213.32,213.23,18.70137967]
[1759184600988,3.35563137,213.31,213.23,18.70137967]
[1759184601191,1.70137967,213.32,213.23,18.70137967]
[1759184601383,7.68,213.3,213.23,18.70137967]
[1759184601583,7.24,213.31,213.23,1.70137967]
[1759184601882,1.70137967,213.32,213.22,14.37567133]
[1759184602083,7.24,213.3,213.22,16.077051]
[1759184602784,1.70137967,213.3,213.22,14.37567133]
[1759184603692,7.24,213.28,213.22,14.37567133]
[1759184603896,1.70137967,213.3,213.22,14.37567133]
[1759184604088,7.24,213.28,213.22,14.37567133]
[1759184604289,2.65968004,213.32,213.22,14.37567133]
[1759184604488,3.35350133,213.31,213.22,14.37567133]
[1759184604692,7.58,213.29,213.22,14.37567133]
[1759184604889,7.58,213.31,213.22,14.37567133]
[1759184605090,3.35350133,213.3,213.22,14.37567133]
[1759184605290,7.58,213.28,213.22,14.37567133]
[1759184605893,2.65968004,213.32,213.22,14.37567133]
[1759184606188,7.58,213.3,213.22,14.37567133]
[1759184606385,7.58,213.31,213.22,14.37567133]
[1759184606591,7.58,213.29,213.22,14.37567133]
[1759184606791,7.58,213.31,213.22,14.37567133]
[1759184606988,3.35245564,213.3,213.22,14.37567133]
[1759184607187,2.65968004,213.32,213.22,14.37567133]
[1759184607389,7.58,213.3,213.22,14.37567133]
[1759184607595,7.58,213.31,213.22,14.37567133]
[1759184607796,7.58,213.29,213.22,14.37567133]
[1759184609193,7.58,213.31,213.22,14.37567133]
[1759184609392,3.35008957,213.3,213.22,14.37567133]
[1759184609600,10.93008957,213.29,213.22,14.37567133]
[1759184609796,7.58,213.29,213.22,14.37567133]
[1759184619899,7.58,213.29,213.23,0.61]
[1759184631414,7.58,213.27,213.16,2.65968004]
[1759184631608,7.58,213.25,213.17,0.61]
[1759184633511,3.35499796,213.24,213.17,0.61]
[1759184633816,7.58,213.22,213.16,2.65968004]
[1759184634019,7.58,213.29,213.17,0.61]
[1759184634316,7.7,213.27,213.17,0.61]
[1759184634518,7.7,213.25,213.17,0.61]
[1759184634814,3.35453183,213.26,213.17,0.61]
[1759184634815,7.7,213.23,213.17,0.61]
[1759184635112,11.05453183,213.22,213.16,0.61]
[1759184635312,7.7,213.22,213.16,0.61]
[1759184636916,7.7,213.22,213.16,3.26968004]
[1759184637216,7.7,213.22,213.16,0.61]
[1759184637411,7.7,213.28,213.16,0.61]
[1759184637618,3.34373385,213.27,213.16,0.61]
[1759184637817,11.04373385,213.26,213.16,0.61]
[1759184638012,7.7,213.24,213.17,0.61]
[1759184638207,3.34373385,213.23,213.17,0.61]
[1759184638420,7.7,213.24,213.17,0.61]
[1759184638613,3.34286968,213.23,213.17,0.61]
[1759184638814,7.7,213.24,213.17,0.61]
[1759184639008,3.34287929,213.23,213.17,0.61]
[1759184639213,7.7,213.24,213.17,0.61]
[1759184639414,3.34214736,213.23,213.17,0.61]
[1759184639618,7.7,213.24,213.17,0.61]
[1759184639816,3.34214736,213.23,213.17,0.61]
[1759184640017,7.7,213.24,213.17,0.61]
[1759184640213,3.34214736,213.23,213.17,0.61]
[1759184640417,7.7,213.24,213.17,0.61]
[1759184644916,7.7,213.24,213.16,16.371518]
[1759184645116,7.7,213.27,213.12,3.26968004]
[1759184645323,7.7,213.25,213.14,0.61]
[1759184645615,3.33983034,213.24,213.14,0.61]
[1759184645813,7.7,213.22,213.14,0.61]
[1759184646814,7.7,213.27,213.14,14.32376794]
[1759184647022,3.33970323,213.26,213.14,14.32376794]
[1759184647219,3.33970323,213.25,213.14,14.32376794]
[1759184647417,3.33970323,213.24,213.14,14.32376794]
[1759184647616,15.73968004,213.28,213.14,14.32376794]
[1759184647821,7.7,213.26,213.14,14.32376794]
[1759184648023,3.33940309,213.25,213.14,14.32376794]
[1759184648222,3.33940309,213.24,213.14,14.32376794]
[1759184648421,7.7,213.27,213.14,14.32376794]
[1759184648615,3.33917531,213.26,213.14,14.32376794]
[1759184648818,3.33917531,213.25,213.14,14.32376794]
[1759184649017,3.33917531,213.24,213.14,14.32376794]
[1759184649218,7.7,213.27,213.14,14.32376794]
[1759184649422,3.33880902,213.26,213.14,14.32376794]
[1759184649622,7.7,213.24,213.14,14.32376794]
[1759184649919,7.7,213.22,213.14,14.32376794]
[1759184650119,7.7,213.27,213.14,14.32376794]
[1759184650425,7.7,213.25,213.14,14.32376794]
[1759184650725,3.33842295,213.24,213.14,14.32376794]
[1759184651019,3.33842295,213.23,213.14,14.32376794]
[1759184651217,3.33842295,213.25,213.14,14.32376794]
[1759184651417,7.7,213.23,213.15,0.61]
[1759184654720,2.65968004,213.27,213.14,13.84392666]
[1759184654925,3.33720838,213.26,213.11,0.61]
[1759184655126,11.13720838,213.25,213.11,0.61]
[1759184655328,7.8,213.23,213.11,0.61]
[1759184659130,2.65968004,213.27,213.11,14.26291966]
[1759184659326,11.13694148,213.26,213.12,0.61]
[1759184659525,3.33694148,213.25,213.12,0.61]
[1759184659828,7.8,213.23,213.12,0.61]
[1759184663326,7.8,213.23,213.13,0.61]
[1759184666225,7.8,213.23,213.14,1.70268829]
[1759184666529,7.8,213.23,213.15,0.6]
[1759184675339,3.35067968,213.22,213.15,0.6]
[1759184675540,7.8,213.23,213.15,0.6]
[1759184675739,7.98,213.21,213.15,0.6]
[1759184680741,1.70268829,213.28,213.17,0.6]
[1759184680942,7.98,213.26,213.17,0.6]
[1759184681141,3.35275606,213.25,213.17,0.6]
[1759184681341,11.33275606,213.24,213.17,0.6]
[1759184681531,7.98,213.24,213.17,0.6]
[1759184683348,7.98,213.24,213.18,1.70268829]
[1759184687842,7.98,213.25,213.17,38.39312805]
[1759184688047,7.98,213.23,213.16,1.70268829]
[1759184693447,1.70268829,213.26,213.15,37.33171701]
[1759184693749,7.98,213.24,213.14,0.6]
[1759184693947,3.34784488,213.23,213.14,0.6]
[1759184694146,7.98,213.21,213.14,0.6]
[1759184694748,1.70268829,213.26,213.14,37.18514027]
[1759184694948,3.34754848,213.25,213.14,37.18514027]
[1759184695149,7.58,213.23,213.14,37.18514027]
[1759184695350,3.34754848,213.22,213.14,37.18514027]
[1759184695546,7.58,213.25,213.14,37.18514027]
[1759184695747,7.58,213.23,213.14,37.18514027]
[1759184695949,7.58,213.21,213.14,37.18514027]
[1759184698657,7.58,213.21,213.14,102.82534027]
[1759184699559,7.58,213.21,213.2,4.2186]
[1759184707957,7.58,213.21,213.18,4.219]
[1759184708457,9.28268829,213.21,213.18,4.219]
[1759184709157,9.28268829,213.21,213.19,4.2188]
[1759184709365,4.2173,213.27,213.15,65.6397]
[1759184709663,7.58,213.21,213.15,65.6397]
[1759184709862,1.70268829,213.22,213.15,65.6397]
[1759184710156,7.58,213.2,213.15,65.6397]
[1759184710357,7.58,213.21,213.2,4.2186]
[1759184710557,10.93026323,213.21,213.2,4.2186]
[1759184715858,3.35026323,213.21,213.2,4.2186]
[1759184716058,7.59,213.24,213.23,4.2181]
[1759184732063,7.98,213.31,213.21,0.63]
[1759184732268,7.98,213.29,213.21,0.63]
[1759184732462,3.35982688,213.28,213.21,0.63]
[1759184732661,7.98,213.26,213.19,65.6267]
[1759184732858,3.35982688,213.25,213.19,65.6267]
[1759184733157,7.98,213.31,213.24,4.2177]
[1759184733361,7.98,213.29,213.24,4.2177]
[1759184733670,7.98,213.27,213.24,4.2177]
[1759184733968,11.33970472,213.26,213.25,4.2176]
[1759184734366,11.33970472,213.26,213.17,65.6321]
[1759184734561,7.98,213.24,213.15,66.2697]
[1759184734765,7.98,213.22,213.15,66.2697]
[1759184735167,7.98,213.22,213.2,4.2186]
[1759184735370,6.87643122,213.29,213.16,65.6359]
[1759184735569,7.98,213.27,213.17,0.63]
[1759184735768,7.98,213.25,213.17,0.63]
[1759184735970,7.98,213.23,213.17,0.63]
[1759184736164,11.33894121,213.22,213.17,0.63]
[1759184736360,7.98,213.22,213.16,66.2659]
[1759184738266,7.98,213.22,213.16,0.63]
[1759184738472,7.98,213.28,213.16,0.63]
[1759184738674,3.3587587,213.27,213.16,0.63]
[1759184738873,7.98,213.25,213.16,0.63]
[1759184739172,7.98,213.23,213.16,0.63]
[1759184739369,3.3587587,213.22,213.16,0.63]
[1759184739571,6.87643122,213.29,213.2,4.2185]
[1759184739873,11.34010345,213.28,213.2,4.2185]
[1759184740072,7.98,213.26,213.2,4.2185]
[1759184740274,7.98,213.24,213.17,0.63]
[1759184740474,3.36010345,213.23,213.17,0.63]
[1759184740771,7.98,213.28,213.17,0.63]
[1759184740968,7.98,213.26,213.17,0.63]
[1759184741171,7.98,213.24,213.17,0.63]
[1759184741373,3.36032015,213.23,213.17,0.63]
[1759184741572,7.98,213.24,213.21,4.2185]
[1759184741772,7.98,213.22,213.21,4.2185]
[1759184743577,7.98,213.28,213.21,0.63]
[1759184743871,3.36069287,213.27,213.21,0.63]
[1759184744075,3.36069287,213.26,213.21,0.63]
[1759184744275,3.36069287,213.25,213.21,0.63]
[1759184744476,7.98,213.23,213.22,4.2183]
[1759184744674,11.34069287,213.23,213.22,4.2183]
[1759184744878,7.98,213.23,213.22,4.2183]
[1759184746787,7.98,213.23,213.21,0.63]
[1759184746788,7.98,213.3,213.21,0.63]
[1759184746984,3.36183753,213.29,213.21,0.63]
[1759184747182,11.34183753,213.28,213.21,0.63]
[1759184747382,3.36183753,213.27,213.21,0.63]
[1759184747692,11.34183753,213.26,213.2,180.1924]
[1759184747880,7.98,213.26,213.2,180.1924]
[1759184748185,7.98,213.3,213.21,0.63]
[1759184748386,3.36132982,213.29,213.21,0.63]
[1759184748684,11.34132982,213.28,213.25,4.2176]
[1759184748883,7.98,213.26,213.25,4.2176]
[1759184749084,11.34132982,213.26,213.25,4.2176]
[1759184749285,11.34125683,213.26,213.25,4.2176]
[1759184753390,7.98,213.24,213.07,10.45627318]
[1759184753593,2.65943122,213.17,213.03,70.5262]
[1759184753787,3.36125683,213.16,213.03,70.5262]
[1759184753987,10.63943122,213.14,213.03,4.85]
[1759184754181,7.57,213.12,213.03,4.85]
[1759184754386,7.57,213.1,213.05,4.2216]
[1759184754590,7.57,213.08,213.05,1.87622103]
[1759184754888,7.57,213.16,213.03,4.85]
[1759184755192,2.65943122,213.13,213.03,4.85]
[1759184755387,7.57,213.11,213.03,4.85]
[1759184755587,7.57,213.09,213.03,4.85]
[1759184755993,58.55327916,213.18,213.05,4.2214]
[1759184755994,6.87893122,213.16,213.05,4.2214]
[1759184756192,11.00542409,213.15,213.05,4.2214]
[1759184756382,7.57,213.13,213.05,4.2214]
[1759184756586,7.57,213.11,213.05,4.2214]
[1759184756789,2.65943122,213.16,213.03,84.80721929]
[1759184756984,3.43237591,213.15,213.03,84.80721929]
[1759184757189,3.43237591,213.14,213.07,4.221]
[1759184757394,11.00237591,213.13,213.07,4.221]
[1759184757698,3.43237591,213.12,213.07,4.221]
[1759184757994,7.57,213.14,213.07,4.221]
[1759184758195,3.43237591,213.13,213.07,4.221]
[1759184758398,7.57,213.14,213.07,4.221]
[1759184758688,7.57,213.12,213.09,4.84]
[1759184758889,7.57,213.18,213.09,65.6573]
[1759184759091,3.4464785,213.17,213.09,65.6573]
[1759184759287,7.57,213.18,213.09,65.6573]
[1759184759692,7.57,213.18,213.13,4.22]
[1759184760097,7.57,213.18,213.11,70.4918]
[1759184760492,1.6495583,213.19,213.15,4.2196]
[1759184761198,11.01546549,213.18,213.12,4.2202]
[1759184761497,7.57,213.16,213.12,4.2202]
[1759184761699,7.57,213.18,213.12,4.2202]
[1759184761998,7.57,213.16,213.12,4.2202]
[1759184762293,7.57,213.18,213.12,4.2202]
[1759184762492,3.44360467,213.17,213.14,4.2198]
[1759184762694,7.57,213.18,213.14,4.2198]
[1759184762893,1.6495583,213.19,213.14,4.2198]
[1759184763697,7.57,213.18,213.14,4.2198]
[1759184763893,1.6495583,213.19,213.14,4.2198]
[1759184765096,7.57,213.18,213.14,4.2198]
[1759184765296,1.6495583,213.19,213.14,4.2198]
[1759184765596,7.57,213.18,213.14,4.2198]
[1759184766003,1.6495583,213.19,213.14,4.2198]
[1759184766198,7.57,213.18,213.14,4.2198]
[1759184766902,1.6495583,213.19,213.14,4.2198]
[1759184767400,7.57,213.18,213.14,4.2198]
[1759184767796,1.6495583,213.19,213.14,4.2198]
[1759184768502,7.57,213.18,213.12,4.84]
[1759184769707,7.57,213.18,213.12,9.0601]
[1759184771900,1.6495583,213.19,213.13,4.2199]
[1759184772503,1.6495583,213.19,213.13,9.0599]
[1759184772797,7.57,213.18,213.13,9.0599]
[1759184772998,1.6495583,213.19,213.13,9.0599]
[1759184773202,7.57,213.18,213.13,9.0599]
[1759184773503,1.6495583,213.19,213.13,9.0599]
[1759184773704,7.57,213.18,213.13,9.0599]
[1759184774000,1.6495583,213.19,213.13,4.2199]
[1759184774208,7.57,213.18,213.15,4.2196]
[1759184774706,7.43,213.18,213.15,4.2196]
[1759184778712,1.6495583,213.19,213.15,4.2196]
[1759184779413,7.43,213.18,213.15,4.2196]
[1759184779614,1.6495583,213.19,213.15,4.2196]
[1759184780111,7.43,213.18,213.15,4.2196]
[1759184780711,1.6495583,213.19,213.15,4.2196]
[1759184780909,7.43,213.18,213.15,4.2196]
[1759184781517,1.6495583,213.19,213.15,4.2196]
[1759184781816,7.43,213.18,213.15,4.2196]
[1759184782218,1.6495583,213.19,213.15,4.2196]
[1759184783215,7.43,213.18,213.15,4.2196]
[1759184783717,9.0795583,213.19,213.16,9.0493]
[1759184784115,1.6495583,213.19,213.16,9.0493]
[1759184784315,7.82,213.18,213.16,9.0493]
[1759184784920,7.82,213.18,213.16,4.2193]
[1759184786119,12.0381,213.23,213.17,9.0491]
[1759184786424,3.44404723,213.22,213.17,4.83]
[1759184786624,7.82,213.23,213.17,4.83]
[1759184786818,7.82,213.21,213.17,4.83]
[1759184787121,3.44480628,213.2,213.17,4.83]
[1759184787321,7.82,213.2,213.17,4.83]
[1759184787523,7.82,213.2,213.17,9.0492]
[1759184788225,7.82,213.2,213.18,4.2189]
[1759184789726,9.52322673,213.23,213.16,9.0493]
[1759184789923,3.44606594,213.22,213.16,9.0493]
[1759184790226,3.44606594,213.21,213.16,9.0493]
[1759184790429,7.82,213.19,213.16,9.0493]
[1759184794132,3.45071409,213.18,213.16,9.0493]
[1759184795031,11.27071409,213.17,213.1,1.70322673]